fUSD/lending_fUSD_20250612
["ID","MTS","AMOUNT","RATE_DAILY","PERIOD"]
[365475700,1749696430528,-2128.59151932,0.00038081,120]
[365475701,1749696430554,-1140.5291307,0.00038081,120]
[365475702,1749696430581,-183.92619154,0.00038081,120]
[365475703,1749696430608,-500.0,0.00038081,120]
[365475704,1749696430635,-500.0,0.00038081,120]
[365475705,1749696430661,-404.30423741,0.00038081,120]
[365475706,1749696430688,-490.0,0.00038081,120]
[365475707,1749696430715,-490.0,0.00038081,60]
[365475708,1749696430742,-500.0,0.00038081,120]
[365475709,1749696430769,-470.0,0.00038081,120]
[365475710,1749696430796,-283.0,0.00038081,120]
[365475711,1749696431334,942.23283217,0.00038081,50]
[365475712,1749696432180,-1808.53763687,0.00018,2]
[365475713,1749696450595,150.0,0.00023427,120]
[365475714,1749696468074,181.17,0.000179,4]
[365475715,1749696481296,300.0,0.00017999,2]
[365475716,1749696491905,590.3,0.00024658,120]
[365475717,1749696517263,1671.33708975,0.00038093,120]
[365475718,1749696517500,6553.475155,0.00038093,50]
[365475726,1749696541977,300.0,0.00017999,2]
[365475727,1749696542442,500.0,0.00038093,120]
[365475728,1749696542694,480.0,0.00038093,120]
[365475729,1749696552016,331.14524747,0.00038093,60]
[365475734,1749696559225,2077.05,0.00038093,120]
[365475735,1749696559496,2077.05,0.00038093,120]
[365475736,1749696559764,2077.05,0.00038093,120]
[365475737,1749696559999,2077.05,0.00038093,120]
[365475738,1749696560251,2077.05,0.00038093,120]
[365475739,1749696560505,2077.05,0.00038093,120]
[365475740,1749696560760,2077.05,0.00038093,120]
[365475741,1749696561004,2077.05,0.00038093,120]
[365475742,1749696561256,2077.05,0.00038093,120]
[365475743,1749696561496,2077.05,0.00038093,120]
[365475744,1749696561770,2077.05,0.00038093,120]
[365475745,1749696562584,2077.05,0.00038093,120]
[365475746,1749696562627,1800.48,0.00038093,120]
[365475747,1749696562684,2077.05,0.00038093,120]
[365475748,1749696562741,2077.05,0.00038093,120]
[365475749,1749696562908,1800.48,0.00038093,120]
[365475750,1749696562946,2077.05,0.00038093,120]
[365475751,1749696563022,2077.05,0.00038093,120]
[365475752,1749696563119,1800.48,0.00038093,120]
[365475753,1749696563319,2077.05,0.00038093,120]
[365475754,1749696563418,1800.48,0.00038093,120]
[365475755,1749696563528,2077.05,0.00038093,120]
[365475756,1749696563680,1800.48,0.00038093,120]
[365475757,1749696563776,2077.05,0.00038093,120]
[365475758,1749696563936,1800.48,0.00038093,120]
[365475759,1749696564021,2077.05,0.00038093,120]
[365475760,1749696564224,1800.48,0.00038093,120]
[365475761,1749696564271,2077.05,0.00038093,120]
[365475762,1749696564479,1800.48,0.00038093,120]
[365475763,1749696564770,2077.05,0.00038093,120]
[365475764,1749696564834,1800.48,0.00038093,120]
[365475765,1749696564863,2077.05,0.00038093,120]
[365475766,1749696564981,1800.48,0.00038093,120]
[365475767,1749696565020,2077.22215575,0.00038093,120]
[365475768,1749696565226,1800.48,0.00038093,120]
[365475769,1749696565499,1800.48,0.00038093,120]
[365475770,1749696565743,1800.48,0.00038093,120]
[365475771,1749696566003,1800.48,0.00038093,120]
[365475772,1749696566265,1800.48,0.00038093,120]
[365475773,1749696566520,1800.48,0.00038093,120]
[365475774,1749696566795,1800.48,0.00038093,120]
[365475775,1749696567089,1800.48,0.00038093,120]
[365475776,1749696567295,1800.48,0.00038093,120]
[365475777,1749696567589,1800.48,0.00038093,120]
[365475778,1749696567841,1800.48,0.00038093,120]
[365475779,1749696568105,1800.48,0.00038093,120]
[365475780,1749696568374,1800.48,0.00038093,120]
[365475781,1749696568616,1800.68,0.00038093,120]
[365475782,1749696583755,500.0,0.00038093,120]
[365475783,1749696583838,500.0,0.00038093,120]
[365475784,1749696584310,500.0,0.00038093,120]
[365475785,1749696584557,500.0,0.00038093,120]
[365475786,1749696584822,500.0,0.00038093,120]
[365475787,1749696585059,361.47998847,0.00038093,120]
[365475788,1749696591269,3642.06678991,0.00038093,50]
[365475789,1749696592077,1649.56,0.00024658,120]
[365475790,1749696595776,10221.86339386,0.00038093,120]
[365475791,1749696601199,1000.0,0.0001791,2]
[365475792,1749696601234,1200.0,0.00017999,2]
[365475793,1749696601680,300.0,0.00017999,2]
[365475794,1749696607317,190.06,0.00038093,50]
[365475797,1749696631429,-6715.57626092,0.00018,2]
[365475798,1749696631444,-2552.16498115,0.00018,2]
[365475799,1749696631583,-1159.37732893,0.00018,2]
[365475800,1749696631637,-7021.31437809,0.00018,2]
[365475801,1749696631648,-250.0,0.00018007,2]
[365475802,1749696631658,-666.0,0.00018027,2]
[365475803,1749696631668,-250.0,0.00018044,2]
[365475804,1749696631679,-150.0,0.00018061,7]
[365475805,1749696631689,-247.61,0.00018074,2]
[365475806,1749696631699,-784.57,0.0001809,2]
[365475807,1749696631711,-3932.36836774,0.00018109,2]
[365475808,1749696631722,-300.0,0.00018112,2]
[365475809,1749696631732,-3932.36836774,0.00018306,2]
[365475810,1749696631743,-205.0,0.00018316,2]
[365475811,1749696631753,-151.0,0.00018322,2]
[365475812,1749696631763,-1957.856,0.00018322,2]
[365475813,1749696631774,-207.4,0.00018322,2]
[365475814,1749696631785,-542.72,0.00018341,2]
[365475815,1749696631796,-2030.296672,0.00018377,2]
[365475816,1749696631807,-340.31477512,0.00018415,2]
[365475817,1749696631817,-649.40669372,0.00018432,2]
[365475818,1749696631827,-386.0,0.00018473,2]
[365475819,1749696631837,-751.0,0.00018489,2]
[365475820,1749696631847,-796.98,0.000185,2]
[365475821,1749696631857,-1593.52,0.000185,2]
[365475822,1749696631868,-796.98,0.000185,2]
[365475823,1749696631878,-796.98,0.000185,2]
[365475824,1749696631888,-796.98,0.000185,2]
[365475825,1749696631899,-3932.36836774,0.00018502,2]
[365475826,1749696631909,-300.35,0.00018664,2]
[365475827,1749696631919,-303.82,0.00018664,2]
[365475832,1749696632265,-1456.0,0.00018685,2]
[365475833,1749696632276,-479.0,0.00018685,2]
[365475834,1749696632286,-3932.36836774,0.00018698,2]
[365475835,1749696632296,-166.52,0.00018729,2]
[365475836,1749696632306,-150.0,0.00018756,2]
[365475837,1749696632315,-150.0,0.00018756,2]
[365475838,1749696632325,-451.37197656,0.00018778,2]
[365475839,1749696632367,-402.62802344,0.00018778,2]
[365475840,1749696632379,-251.54599156,0.00018778,2]
[365475841,1749696632422,-239.45400844,0.00018778,2]
[365475842,1749696632435,-150.0,0.00018877,2]
[365475843,1749696632445,-432.01905442,0.00018895,2]
[365475854,1749696637427,-402.04444686,0.00018895,2]
[365475865,1749696637533,-3098.30486646,0.00018895,2]
[365475867,1749696637545,-103.86942299,0.000189,2]
[365475868,1749696637586,-109.94774156,0.000189,2]
[365475869,1749696637599,-213.81716441,0.00018934,2]
[365475870,1749696637618,-200.0,0.00018948,2]
[365475871,1749696637631,-143.37020851,0.00018969,2]
[365475872,1749696637654,-70.4469559,0.00018969,2]
[365475873,1749696637667,-319.12324162,0.00018974,2]
[365475874,1749696637800,-1828.16206211,0.00018974,2]
[365475875,1749696637817,-4180.31456499,0.00018974,2]
[365475877,1749696638613,313.0059,0.00038093,50]
[365475885,1749696639587,-2049.54334321,0.00018974,2]
[365475886,1749696639799,-4733.9342793,0.00018974,2]
[365475887,1749696639812,-13111.07749123,0.00018987,2]
[365475888,1749696639825,-150.0,0.00018989,2]
[365475889,1749696639838,-200.0,0.00018991,2]
[365475890,1749696639851,-300.0,0.00019,2]
[365475891,1749696639864,-213.81716441,0.00019003,2]
[365475892,1749696639876,-300.0,0.00019012,2]
[365475893,1749696639888,-302.1,0.00019028,2]
[365475894,1749696639901,-213.81716441,0.00019038,2]
[365475895,1749696639913,-17561.1121,0.00019043,2]
[365475896,1749696639926,-272.0629,0.00019043,2]
[365475897,1749696639938,-1000.0,0.00019043,2]
[365475898,1749696639950,-729.8248,0.00019043,2]
[365475899,1749696639964,-13111.07749123,0.00019051,2]
[365475900,1749696639976,-213.81716441,0.00019072,2]
[365475901,1749696639989,-793.79742791,0.00019073,2]
[365475902,1749696640002,-510.34832749,0.00019074,2]
[365475903,1749696640015,-161.77392948,0.00019078,2]
[365475904,1749696640027,-191.24552228,0.00019078,2]
[365475905,1749696640039,-247.77772782,0.00019078,2]
[365475906,1749696640052,-1135.46677846,0.00019078,2]
[365475907,1749696640064,-609.2287,0.00019078,2]
[365475908,1749696640076,-3533.4369,0.00019078,2]
[365475909,1749696640089,-200.0,0.00019082,2]
[365475910,1749696640102,-500.0,0.00019086,2]
[365475911,1749696640115,-200.0,0.00019086,2]
[365475912,1749696640128,-176.17857411,0.0001909,2]
[365475913,1749696640141,-3932.36836774,0.00019091,2]
[365475914,1749696640154,-213.81716441,0.00019107,2]
[365475915,1749696640166,-1000.0,0.00019107,2]
[365475916,1749696640178,-213.81716441,0.00019141,2]
[365475917,1749696640190,-500.0,0.00019147,2]
[365475918,1749696640203,-1135.46677846,0.00019147,2]
[365475919,1749696640217,-351.76104245,0.00019159,2]
[365475920,1749696640229,-350.1,0.00019164,2]
[365475921,1749696640241,-350.1,0.00019168,2]
[365475922,1749696640253,-350.1,0.00019168,2]
[365475923,1749696640265,-350.1,0.00019168,2]
[365475924,1749696640277,-350.1,0.00019168,2]
[365475925,1749696640290,-22894.73940015,0.00019168,2]
[365475926,1749696640303,-501.58186371,0.00019173,2]
[365475927,1749696640315,-500.0,0.00019173,2]
[365475928,1749696640328,-501.04347227,0.00019173,2]
[365475929,1749696640341,-500.0,0.00019173,2]
[365475930,1749696640353,-74140.7146824,0.00019174,2]
[365475931,1749696640367,-6596.469498,0.00019174,2]
[365475932,1749696640379,-213.81716441,0.00019176,2]
[365475933,1749696640399,-1101.55414014,0.00019177,5]
[365475934,1749696640412,-175.54,0.00019177,2]
[365475935,1749696640425,-300.0,0.00019177,2]
[365475936,1749696640439,-666.0,0.00019177,2]
[365475937,1749696640451,-300.0,0.00019177,2]
[365475938,1749696640465,-368.15148476,0.00019177,2]
[365475939,1749696640479,-193.68209469,0.00019177,2]
[365475940,1749696640493,-586.0,0.00019178,2]
[365475941,1749696640506,-254.90633384,0.00019178,2]
[365475942,1749696640518,-963.608012,0.00019178,2]
[365475943,1749696640531,-963.608012,0.00019178,2]
[365475944,1749696640544,-963.608012,0.00019178,2]
[365475945,1749696640556,-963.608012,0.00019178,2]
[365475946,1749696640569,-963.608012,0.00019178,2]
[365475947,1749696640582,-175.299832,0.00019178,2]
[365475948,1749696640594,-175.299832,0.00019178,2]
[365475949,1749696640607,-175.299832,0.00019178,2]
[365475950,1749696640619,-175.299832,0.00019178,2]
[365475951,1749696640631,-175.299832,0.00019178,2]
[365475952,1749696640644,-175.299832,0.00019178,2]
[365475953,1749696640657,-175.299832,0.00019178,2]
[365475954,1749696640670,-151.0,0.00019178,2]
[365475955,1749696640683,-151.0,0.00019178,2]
[365475956,1749696640696,-175.299832,0.00019178,2]
[365475957,1749696640710,-151.0,0.00019178,2]
[365475958,1749696640723,-175.299832,0.00019178,2]
[365475959,1749696640736,-175.299832,0.00019178,2]
[365475960,1749696640748,-151.0,0.00019178,2]
[365475961,1749696640761,-175.299832,0.00019178,2]
[365475962,1749696640773,-175.299832,0.00019178,2]
[365475963,1749696640786,-175.299832,0.00019178,2]
[365475964,1749696640798,-151.0,0.00019178,2]
[365475965,1749696640811,-175.299832,0.00019178,2]
[365475966,1749696640823,-151.0,0.00019178,2]
[365475967,1749696640836,-151.0,0.00019178,2]
[365475968,1749696640849,-271.976732,0.00019178,2]
[365475969,1749696640862,-291.275643,0.00019178,2]
[365475970,1749696640873,-291.275643,0.00019178,2]
[365475971,1749696640886,-291.275643,0.00019178,2]
[365475972,1749696640898,-291.275643,0.00019178,2]
[365475973,1749696640909,-291.275643,0.00019178,2]
[365475974,1749696640921,-291.275643,0.00019178,2]
[365475975,1749696640934,-291.275643,0.00019178,2]
[365475976,1749696640946,-291.275643,0.00019178,2]
[365475977,1749696640958,-291.275643,0.00019178,2]
[365475978,1749696640970,-291.275643,0.00019178,2]
[365475979,1749696640982,-291.275643,0.00019178,2]
[365475980,1749696640994,-291.275643,0.00019178,2]
[365475981,1749696641005,-291.275643,0.00019178,2]
[365475982,1749696641016,-291.275643,0.00019178,2]
[365475983,1749696641027,-460.68934451,0.00019178,2]
[365475984,1749696641039,-1296.764101,0.00019178,2]
[365475985,1749696641051,-1296.764101,0.00019178,2]
[365475986,1749696641062,-1296.764101,0.00019178,2]
[365475987,1749696641074,-1296.764101,0.00019178,2]
[365475988,1749696641085,-1688.436084,0.00019178,2]
[365475989,1749696641097,-1296.764101,0.00019178,2]
[365475990,1749696641108,-1688.436084,0.00019178,2]
[365475991,1749696641120,-1296.764101,0.00019178,2]
[365475992,1749696641131,-1688.436084,0.00019178,2]
[365475993,1749696641142,-1296.764101,0.00019178,2]
[365475994,1749696641156,-1688.436084,0.00019178,2]
[365475995,1749696641167,-1688.436084,0.00019178,2]
[365475996,1749696641178,-1688.436084,0.00019178,2]
[365475997,1749696641191,-863.295849,0.00019178,2]
[365475998,1749696641202,-1688.436084,0.00019178,2]
[365475999,1749696641215,-1296.764101,0.00019178,2]
[365476000,1749696641226,-863.295849,0.00019178,2]
[365476001,1749696641239,-1688.436084,0.00019178,2]
[365476002,1749696641252,-1296.764101,0.00019178,2]
[365476003,1749696641264,-863.295849,0.00019178,2]
[365476004,1749696641275,-1296.764101,0.00019178,2]
[365476005,1749696641287,-863.295849,0.00019178,2]
[365476006,1749696641299,-1296.764101,0.00019178,2]
[365476007,1749696641310,-863.295849,0.00019178,2]
[365476008,1749696641322,-1688.436084,0.00019178,2]
[365476009,1749696641334,-1296.764101,0.00019178,2]
[365476010,1749696641346,-863.295849,0.00019178,2]
[365476011,1749696641359,-1688.436084,0.00019178,2]
[365476012,1749696641372,-1296.764101,0.00019178,2]
[365476013,1749696641383,-1688.436084,0.00019178,2]
[365476014,1749696641878,-1296.764101,0.00019178,2]
[365476015,1749696641906,-1688.436084,0.00019178,2]
[365476016,1749696641916,-1688.436084,0.00019178,2]
[365476017,1749696641926,-1688.436084,0.00019178,2]
[365476018,1749696641936,-1688.436084,0.00019178,2]
[365476019,1749696641946,-1688.436084,0.00019178,2]
[365476020,1749696641957,-863.295849,0.00019178,2]
[365476021,1749696641968,-863.295849,0.00019178,2]
[365476022,1749696641977,-863.295849,0.00019178,2]
[365476023,1749696641986,-863.295849,0.00019178,2]
[365476024,1749696641995,-863.295849,0.00019178,2]
[365476025,1749696642005,-863.295849,0.00019178,2]
[365476026,1749696642014,-8007.55,0.00019178,2]
[365476027,1749696642024,-8007.55,0.00019178,2]
[365476028,1749696642034,-151.204888,0.00019178,2]
[365476029,1749696642043,-8007.55,0.00019178,2]
[365476030,1749696642053,-8007.55,0.00019178,2]
[365476031,1749696642063,-151.0,0.00019178,2]
[365476032,1749696642072,-151.0,0.00019178,2]
[365476033,1749696642082,-151.0,0.00019178,2]
[365476034,1749696642092,-151.0,0.00019178,2]
[365476035,1749696642101,-151.0,0.00019178,2]
[365476036,1749696642111,-151.0,0.00019178,2]
[365476037,1749696642121,-151.0,0.00019178,2]
[365476038,1749696642130,-151.0,0.00019178,2]
[365476039,1749696642141,-151.0,0.00019178,2]
[365476040,1749696642151,-151.0,0.00019178,2]
[365476041,1749696642161,-151.0,0.00019178,2]
[365476042,1749696642172,-151.0,0.00019178,2]
[365476043,1749696642184,-151.0,0.00019178,2]
[365476044,1749696642194,-151.0,0.00019178,2]
[365476045,1749696642204,-151.0,0.00019178,2]
[365476046,1749696642215,-151.0,0.00019178,2]
[365476047,1749696642225,-151.0,0.00019178,2]
[365476048,1749696642235,-151.0,0.00019178,2]
[365476049,1749696642244,-151.0,0.00019178,2]
[365476050,1749696642253,-151.0,0.00019178,2]
[365476051,1749696642263,-172.80224,0.00019178,2]
[365476052,1749696642273,-225.802187,0.00019178,2]
[365476053,1749696642283,-225.802187,0.00019178,2]
[365476054,1749696642293,-225.802187,0.00019178,2]
[365476055,1749696642304,-225.802187,0.00019178,2]
[365476056,1749696642314,-225.802187,0.00019178,2]
[365476057,1749696642324,-225.802187,0.00019178,2]
[365476059,1749696642334,-225.802187,0.00019178,2]
[365476061,1749696642344,-225.802187,0.00019178,2]
[365476063,1749696642354,-225.802187,0.00019178,2]
[365476065,1749696642364,-225.802187,0.00019178,2]
[365476066,1749696642374,-225.802187,0.00019178,2]
[365476067,1749696642385,-490.0,0.00019178,2]
[365476068,1749696642399,-225.802187,0.00019178,2]
[365476070,1749696642411,-225.802187,0.00019178,2]
[365476071,1749696642421,-225.802187,0.00019178,2]
[365476072,1749696642433,-491.57727206,0.00019178,2]
[365476073,1749696642443,-151.0,0.00019178,2]
[365476074,1749696642453,-255.744734,0.00019178,2]
[365476075,1749696642465,-255.744734,0.00019178,2]
[365476076,1749696642476,-255.744734,0.00019178,2]
[365476077,1749696642486,-255.744734,0.00019178,2]
[365476078,1749696642496,-255.744734,0.00019178,2]
[365476079,1749696642506,-491.34623244,0.00019178,2]
[365476080,1749696642516,-255.744734,0.00019178,2]
[365476081,1749696642526,-255.744734,0.00019178,2]
[365476082,1749696642536,-255.744734,0.00019178,2]
[365476083,1749696642545,-255.744734,0.00019178,2]
[365476084,1749696642555,-255.744734,0.00019178,2]
[365476085,1749696642566,-255.744734,0.00019178,2]
[365476086,1749696642576,-490.82284214,0.00019178,2]
[365476087,1749696642586,-255.744734,0.00019178,2]
[365476088,1749696642596,-255.744734,0.00019178,2]
[365476089,1749696642607,-255.744734,0.00019178,2]
[365476090,1749696642617,-239.671838,0.00019178,2]
[365476091,1749696642627,-239.671838,0.00019178,2]
[365476092,1749696642637,-239.671838,0.00019178,2]
[365476093,1749696642647,-239.671838,0.00019178,2]
[365476094,1749696642657,-239.671838,0.00019178,2]
[365476095,1749696642667,-239.671838,0.00019178,2]
[365476096,1749696642676,-239.671838,0.00019178,2]
[365476097,1749696642686,-239.671838,0.00019178,2]
[365476098,1749696642695,-239.671838,0.00019178,2]
[365476099,1749696642705,-239.671838,0.00019178,2]
[365476100,1749696642716,-239.671838,0.00019178,2]
[365476101,1749696642725,-239.671838,0.00019178,2]
[365476102,1749696642735,-435.65898792,0.00019178,2]
[365476103,1749696642745,-151.0,0.00019178,2]
[365476104,1749696642755,-500.0,0.00019178,2]
[365476105,1749696642764,-151.19621,0.00019178,2]
[365476106,1749696642774,-528.467945,0.00019178,2]
[365476107,1749696642784,-528.467945,0.00019178,2]
[365476108,1749696642793,-528.467945,0.00019178,2]
[365476109,1749696642803,-528.467945,0.00019178,2]
[365476110,1749696642813,-528.467945,0.00019178,2]
[365476111,1749696642822,-528.467945,0.00019178,2]
[365476112,1749696642831,-528.467945,0.00019178,2]
[365476113,1749696642841,-528.467945,0.00019178,2]
[365476114,1749696642852,-528.467945,0.00019178,2]
[365476115,1749696642861,-528.467945,0.00019178,2]
[365476116,1749696642871,-528.467945,0.00019178,2]
[365476117,1749696642881,-528.467945,0.00019178,2]
[365476118,1749696642890,-528.467945,0.00019178,2]
[365476119,1749696642900,-528.467945,0.00019178,2]
[365476120,1749696642910,-490.0,0.00019178,2]
[365476121,1749696642920,-490.0,0.00019178,2]
[365476122,1749696642929,-490.0,0.00019178,2]
[365476123,1749696642939,-479.97198405,0.00019178,2]
[365476124,1749696642949,-319.69758704,0.00019178,2]
[365476125,1749696642958,-192.09181253,0.00019178,2]
[365476126,1749696642969,-490.0,0.00019178,2]
[365476127,1749696642978,-151.0,0.00019178,2]
[365476128,1749696642987,-152.116388,0.00019178,2]
[365476129,1749696642997,-496.10599969,0.00019178,2]
[365476130,1749696643006,-492.96880593,0.00019178,2]
[365476131,1749696643016,-1909.732786,0.00019178,2]
[365476132,1749696643025,-490.0,0.00019178,2]
[365476133,1749696643035,-490.0,0.00019178,2]
[365476135,1749696643044,-491.94578565,0.00019178,2]
[365476136,1749696643054,-494.53825307,0.00019178,2]
[365476137,1749696643064,-151.0,0.00019178,2]
[365476138,1749696643073,-151.0,0.00019178,2]
[365476139,1749696643083,-151.0,0.00019178,2]
[365476140,1749696643093,-490.0,0.00019178,2]
[365476141,1749696643102,-187.118724,0.00019178,2]
[365476142,1749696643113,-187.118724,0.00019178,2]
[365476143,1749696643123,-180.980241,0.00019178,2]
[365476144,1749696643134,-490.0,0.00019178,2]
[365476145,1749696643145,-180.980241,0.00019178,2]
[365476146,1749696643155,-491.86984353,0.00019178,2]
[365476147,1749696643164,-490.0,0.00019178,2]
[365476148,1749696643174,-551.49,0.00019178,2]
[365476149,1749696643183,-290.509648,0.00019178,2]
[365476150,1749696643193,-490.0,0.00019178,2]
[365476151,1749696643202,-310.24708947,0.00019178,2]
[365476152,1749696643213,-490.0,0.00019178,2]
[365476153,1749696643223,-490.0,0.00019178,2]
[365476154,1749696643232,-952.15,0.00019178,2]
[365476155,1749696643241,-151.0,0.00019178,2]
[365476156,1749696643251,-490.0,0.00019178,2]
[365476157,1749696643261,-490.0,0.00019178,2]
[365476158,1749696643270,-432.616814,0.00019178,2]
[365476159,1749696643279,-490.0,0.00019178,2]
[365476161,1749696643289,-485.0635009,0.00019178,2]
[365476163,1749696643299,-455.43181508,0.00019178,2]
[365476164,1749696643308,-490.0,0.00019178,2]
[365476165,1749696643318,-151.0,0.00019178,2]
[365476166,1749696643327,-151.0,0.00019178,2]
[365476167,1749696643337,-151.0,0.00019178,2]
[365476168,1749696643346,-151.0,0.00019178,2]
[365476169,1749696643355,-151.0,0.00019178,2]
[365476170,1749696643366,-151.0,0.00019178,2]
[365476171,1749696643376,-151.0,0.00019178,2]
[365476172,1749696643386,-151.0,0.00019178,2]
[365476173,1749696643401,-295.70313469,0.00019178,2]
[365476174,1749696643411,-490.0,0.00019178,2]
[365476175,1749696643420,-151.0,0.00019178,2]
[365476176,1749696643431,-151.0,0.00019178,2]
[365476177,1749696643440,-151.0,0.00019178,2]
[365476178,1749696643452,-226.81721,0.00019178,2]
[365476179,1749696643463,-362.1895546,0.00019178,2]
[365476180,1749696643472,-490.0,0.00019178,2]
[365476181,1749696643482,-497.2945651,0.00019178,2]
[365476182,1749696643492,-345.19328304,0.00019178,2]
[365476183,1749696643501,-490.0,0.00019178,2]
[365476184,1749696643511,-490.0,0.00019178,2]
[365476185,1749696643520,-490.0,0.00019178,2]
[365476186,1749696643529,-490.0,0.00019178,2]
[365476187,1749696643538,-490.0,0.00019178,2]
[365476188,1749696643548,-490.0,0.00019178,2]
[365476189,1749696643558,-490.0,0.00019178,2]
[365476190,1749696643568,-151.0,0.00019178,2]
[365476191,1749696643578,-483.51205103,0.00019178,2]
[365476192,1749696643587,-151.0,0.00019178,2]
[365476193,1749696643597,-151.0,0.00019178,2]
[365476194,1749696643609,-151.0,0.00019178,2]
[365476195,1749696643618,-151.0,0.00019178,2]
[365476196,1749696643628,-151.0,0.00019178,2]
[365476197,1749696643637,-490.0,0.00019178,2]
[365476198,1749696643647,-490.0,0.00019178,2]
[365476199,1749696643657,-489.28166093,0.00019178,2]
[365476200,1749696643666,-151.0,0.00019178,2]
[365476201,1749696643675,-164.28075,0.00019178,2]
[365476202,1749696643686,-299.005497,0.00019178,2]
[365476203,1749696643696,-490.0,0.00019178,2]
[365476204,1749696643706,-490.0,0.00019178,2]
[365476205,1749696643716,-299.005497,0.00019178,2]
[365476206,1749696643726,-526.75829,0.00019178,2]
[365476207,1749696643735,-526.75829,0.00019178,2]
[365476208,1749696643745,-503.78630908,0.00019178,2]
[365476209,1749696643755,-688.26,0.00019178,2]
[365476210,1749696643765,-688.26,0.00019178,2]
[365476211,1749696643775,-688.26,0.00019178,2]
[365476212,1749696643785,-688.26,0.00019178,2]
[365476213,1749696643794,-688.26,0.00019178,2]
[365476214,1749696643804,-688.26,0.00019178,2]
[365476215,1749696643813,-688.26,0.00019178,2]
[365476216,1749696643823,-390.0,0.00019178,2]
[365476217,1749696643833,-688.26,0.00019178,2]
[365476218,1749696643842,-688.26,0.00019178,2]
[365476219,1749696643851,-688.26,0.00019178,2]
[365476220,1749696643861,-490.0,0.00019178,2]
[365476221,1749696643871,-688.26,0.00019178,2]
[365476222,1749696643880,-688.26,0.00019178,2]
[365476223,1749696643890,-688.26,0.00019178,2]
[365476224,1749696643899,-688.26,0.00019178,2]
[365476225,1749696643908,-688.26,0.00019178,2]
[365476226,1749696643917,-688.26,0.00019178,2]
[365476227,1749696643927,-688.26,0.00019178,2]
[365476228,1749696643936,-688.26,0.00019178,2]
[365476229,1749696643945,-490.0,0.00019178,2]
[365476230,1749696643954,-688.26,0.00019178,2]
[365476231,1749696643965,-688.26,0.00019178,2]
[365476232,1749696643974,-688.26,0.00019178,2]
[365476233,1749696643983,-526.75829,0.00019178,2]
[365476234,1749696643992,-688.26,0.00019178,2]
[365476235,1749696644002,-526.75829,0.00019178,2]
[365476236,1749696644011,-688.26,0.00019178,2]
[365476237,1749696644028,-688.42574805,0.00019178,2]
[365476238,1749696644037,-1473.644712,0.00019178,2]
[365476239,1749696644047,-1061.1,0.00019178,2]
[365476240,1749696644056,-1473.644712,0.00019178,2]
[365476241,1749696644065,-316.143308,0.00019178,2]
[365476242,1749696644075,-316.143308,0.00019178,2]
[365476243,1749696644084,-1473.644712,0.00019178,2]
[365476244,1749696644093,-1473.644712,0.00019178,2]
[365476245,1749696644102,-480.0,0.00019178,2]
[365476246,1749696644112,-490.0,0.00019178,2]
[365476247,1749696644121,-1957.342533,0.00019178,2]
[365476248,1749696644131,-1957.342533,0.00019178,2]
[365476249,1749696644140,-502.90378506,0.00019178,2]
[365476250,1749696644149,-490.0,0.00019178,2]
[365476251,1749696644159,-151.0,0.00019178,2]
[365476252,1749696644168,-1957.342533,0.00019178,2]
[365476253,1749696644178,-151.0,0.00019178,2]